[Event "Titled Tuesday Blitz June 14 Late 2022"]
[White "Fishbein, Mitch"]
[Black "Maltsevskaya, Aleksandra"]
[WhiteFideId "30922917"]
[BlackFideId "24174041"]
[WhiteElo "1939"]
[BlackElo "2243"]
[Result "1-0"]
[Round "01"]
[TimeControl "180+1"]
[Date "2022.06.15"]
[WhiteClock "0:00:22"]
[BlackClock "0:00:05"]

1. e4 {[%clk 0:02:51]}  c5 {[%clk 0:02:57]} 2. Nf3 {[%clk 0:02:46]}  e6 {[%clk 0:02:56]} 3. d3 {[%clk 0:02:46]}  Nc6 {[%clk 0:02:56]} 4. Nbd2 {[%clk 0:02:46]}  d5 {[%clk 0:02:56]} 5. g3 {[%clk 0:02:47]}  Nf6 {[%clk 0:02:55]} 6. Bg2 {[%clk 0:02:47]}  b6 {[%clk 0:02:53]} 7. O-O {[%clk 0:02:46]}  Bb7 {[%clk 0:02:52]} 8. Re1 {[%clk 0:02:47]}  Be7 {[%clk 0:02:51]} 9. Qe2 {[%clk 0:02:32]}  dxe4 {[%clk 0:02:42]} 10. dxe4 {[%clk 0:02:30]}  O-O {[%clk 0:02:40]} 11. c3 {[%clk 0:02:28]}  a6 {[%clk 0:02:38]} 12. Nc4 {[%clk 0:02:21]}  b5 {[%clk 0:02:33]} 13. Rd1 {[%clk 0:02:20]}  Qe8 {[%clk 0:01:14]} 14. Nd6 {[%clk 0:02:10]}  Bxd6 {[%clk 0:01:13]} 15. Rxd6 {[%clk 0:02:11]}  Na5 {[%clk 0:01:10]} 16. Ne5 {[%clk 0:02:02]}  Qe7 {[%clk 0:01:07]} 17. Rd1 {[%clk 0:02:00]}  Rfd8 {[%clk 0:01:07]} 18. Bf4 {[%clk 0:01:54]}  h6 {[%clk 0:01:03]} 19. h4 {[%clk 0:01:53]}  Rxd1+ {[%clk 0:00:58]} 20. Rxd1 {[%clk 0:01:52]}  Rd8 {[%clk 0:00:59]} 21. Rxd8+ {[%clk 0:01:45]}  Qxd8 {[%clk 0:01:00]} 22. Nd3 {[%clk 0:01:31]}  Qe7 {[%clk 0:00:42]} 23. Qe3 {[%clk 0:01:25]}  Nc4 {[%clk 0:00:24]} 24. Qxc5 {[%clk 0:01:25]}  Qd8 {[%clk 0:00:24]} 25. Qd4 {[%clk 0:01:10]}  Qxd4 {[%clk 0:00:20]} 26. cxd4 {[%clk 0:01:10]}  Bxe4 {[%clk 0:00:21]} 27. Bxe4 {[%clk 0:01:07]}  Nxe4 {[%clk 0:00:22]} 28. b3 {[%clk 0:01:04]}  Nb6 {[%clk 0:00:20]} 29. Nc5 {[%clk 0:01:01]}  Nc3 {[%clk 0:00:14]} 30. Nxa6 {[%clk 0:00:57]}  Nxa2 {[%clk 0:00:14]} 31. Nc7 {[%clk 0:00:54]}  Nc3 {[%clk 0:00:13]} 32. Bd2 {[%clk 0:00:50]}  Ne2+ {[%clk 0:00:13]} 33. Kf1 {[%clk 0:00:50]}  Nxd4 {[%clk 0:00:14]} 34. Be3 {[%clk 0:00:50]}  e5 {[%clk 0:00:13]} 35. Nxb5 {[%clk 0:00:47]}  Nxb5 {[%clk 0:00:09]} 36. Bxb6 {[%clk 0:00:47]}  e4 {[%clk 0:00:10]} 37. Ke2 {[%clk 0:00:46]}  f5 {[%clk 0:00:11]} 38. Ke3 {[%clk 0:00:46]}  g5 {[%clk 0:00:10]} 39. hxg5 {[%clk 0:00:45]}  hxg5 {[%clk 0:00:11]} 40. Bd8 {[%clk 0:00:45]}  g4 {[%clk 0:00:05]} 41. Kf4 {[%clk 0:00:45]}  Nd4 {[%clk 0:00:05]} 42. Bb6 {[%clk 0:00:42]}  Nxb3 {[%clk 0:00:04]} 43. Kxf5 {[%clk 0:00:42]}  Nd2 {[%clk 0:00:03]} 44. Be3 {[%clk 0:00:40]}  Nc4 {[%clk 0:00:02]} 45. Kxe4 {[%clk 0:00:39]}  Kf7 {[%clk 0:00:03]} 46. Kf4 {[%clk 0:00:38]}  Ke6 {[%clk 0:00:03]} 47. Kxg4 {[%clk 0:00:38]}  Ke5 {[%clk 0:00:03]} 48. Bc1 {[%clk 0:00:38]}  Ke4 {[%clk 0:00:04]} 49. f4 {[%clk 0:00:36]}  Nb6 {[%clk 0:00:02]} 50. Kg5 {[%clk 0:00:36]}  Nd5 {[%clk 0:00:02]} 51. g4 {[%clk 0:00:33]}  Nc7 {[%clk 0:00:02]} 52. f5 {[%clk 0:00:32]}  Kd5 {[%clk 0:00:02]} 53. Kf6 {[%clk 0:00:31]}  Ne8+ {[%clk 0:00:03]} 54. Ke7 {[%clk 0:00:32]}  Nd6 {[%clk 0:00:03]} 55. Bf4 {[%clk 0:00:28]}  Ne4 {[%clk 0:00:03]} 56. f6 {[%clk 0:00:24]}  Nc5 {[%clk 0:00:03]} 57. f7 {[%clk 0:00:23]}  Ne6 {[%clk 0:00:04]} 58. f8=Q {[%clk 0:00:22]}  Nxf8 {[%clk 0:00:04]} 59. Kxf8 {[%clk 0:00:23]}  Ke6 {[%clk 0:00:05]} 60. Kg7 {[%clk 0:00:22]} 1-0


[Site "https://www.chess.com"]

[Event "Titled Tuesday Blitz June 14 Late 2022"]
[White "Garagulya, Konstantin"]
[Black "Livaic, Leon"]
[WhiteFideId "4128931"]
[BlackFideId "14531534"]
[WhiteElo "2329"]
[BlackElo "2540"]
[Result "0-1"]
[Round "01"]
[TimeControl "180+1"]
[Date "2022.06.14"]
[WhiteClock "0:00:04"]
[BlackClock "0:00:05"]

1. d4 {[%clk 0:02:40]}  e6 {[%clk 0:02:59]} 2. Nf3 {[%clk 0:02:37]}  Nf6 {[%clk 0:02:59]} 3. Bg5 {[%clk 0:02:36]}  c5 {[%clk 0:02:58]} 4. Nbd2 {[%clk 0:02:36]}  cxd4 {[%clk 0:02:58]} 5. Nxd4 {[%clk 0:02:37]}  d5 {[%clk 0:02:52]} 6. e3 {[%clk 0:02:35]}  e5 {[%clk 0:02:47]} 7. N4f3 {[%clk 0:02:34]}  Nc6 {[%clk 0:02:47]} 8. Bb5 {[%clk 0:02:33]}  e4 {[%clk 0:02:42]} 9. Nd4 {[%clk 0:02:33]}  Bd7 {[%clk 0:02:42]} 10. N2b3 {[%clk 0:02:27]}  Be7 {[%clk 0:02:36]} 11. O-O {[%clk 0:02:25]}  O-O {[%clk 0:02:32]} 12. c4 {[%clk 0:02:09]}  Ne5 {[%clk 0:02:03]} 13. cxd5 {[%clk 0:01:34]}  Bg4 {[%clk 0:01:57]} 14. Be2 {[%clk 0:01:28]}  Bxe2 {[%clk 0:01:56]} 15. Nxe2 {[%clk 0:01:27]}  Nxd5 {[%clk 0:01:42]} 16. Bxe7 {[%clk 0:01:27]}  Nxe7 {[%clk 0:01:43]} 17. Ng3 {[%clk 0:01:26]}  f5 {[%clk 0:01:41]} 18. Nd4 {[%clk 0:01:24]}  Qb6 {[%clk 0:01:40]} 19. Qb3+ {[%clk 0:01:23]}  Qxb3 {[%clk 0:01:40]} 20. axb3 {[%clk 0:01:23]}  g6 {[%clk 0:01:37]} 21. Rfc1 {[%clk 0:01:20]}  N7c6 {[%clk 0:01:36]} 22. Nge2 {[%clk 0:01:07]}  a6 {[%clk 0:01:36]} 23. Rc3 {[%clk 0:00:57]}  Rf6 {[%clk 0:01:28]} 24. h3 {[%clk 0:00:56]}  Raf8 {[%clk 0:01:27]} 25. Rac1 {[%clk 0:00:56]}  g5 {[%clk 0:01:10]} 26. Nxc6 {[%clk 0:00:51]}  Nxc6 {[%clk 0:01:11]} 27. Rc5 {[%clk 0:00:48]}  h6 {[%clk 0:01:09]} 28. Rd1 {[%clk 0:00:44]}  Kg7 {[%clk 0:01:00]} 29. Rd7+ {[%clk 0:00:41]}  R8f7 {[%clk 0:00:59]} 30. Rxf7+ {[%clk 0:00:41]}  Kxf7 {[%clk 0:01:00]} 31. g4 {[%clk 0:00:39]}  f4 {[%clk 0:00:48]} 32. Nc3 {[%clk 0:00:37]}  fxe3 {[%clk 0:00:48]} 33. fxe3 {[%clk 0:00:37]}  Rf3 {[%clk 0:00:47]} 34. Nxe4 {[%clk 0:00:38]}  Rxe3 {[%clk 0:00:36]} 35. Nd6+ {[%clk 0:00:36]}  Ke6 {[%clk 0:00:36]} 36. Nxb7 {[%clk 0:00:28]}  Nd4 {[%clk 0:00:36]} 37. Ra5 {[%clk 0:00:22]}  Rxh3 {[%clk 0:00:29]} 38. Rxa6+ {[%clk 0:00:20]}  Ke5 {[%clk 0:00:30]} 39. b4 {[%clk 0:00:19]}  Kf4 {[%clk 0:00:23]} 40. Nc5 {[%clk 0:00:20]}  Kxg4 {[%clk 0:00:20]} 41. Ra3 {[%clk 0:00:17]}  Nf3+ {[%clk 0:00:15]} 42. Kf1 {[%clk 0:00:14]}  Rh1+ {[%clk 0:00:14]} 43. Kg2 {[%clk 0:00:13]}  Rh2+ {[%clk 0:00:14]} 44. Kf1 {[%clk 0:00:14]}  Rxb2 {[%clk 0:00:13]} 45. Nd3 {[%clk 0:00:13]}  Rb1+ {[%clk 0:00:14]} 46. Kf2 {[%clk 0:00:14]}  Nd4 {[%clk 0:00:12]} 47. Rc3 {[%clk 0:00:13]}  Kf5 {[%clk 0:00:09]} 48. Rc4 {[%clk 0:00:09]}  Ke4 {[%clk 0:00:08]} 49. Nc5+ {[%clk 0:00:09]}  Kd5 {[%clk 0:00:09]} 50. Rc3 {[%clk 0:00:09]}  Rxb4 {[%clk 0:00:08]} 51. Nd3 {[%clk 0:00:08]}  Ra4 {[%clk 0:00:07]} 52. Ke3 {[%clk 0:00:05]}  Nf5+ {[%clk 0:00:07]} 53. Kf3 {[%clk 0:00:06]}  g4+ {[%clk 0:00:06]} 54. Kg2 {[%clk 0:00:06]}  h5 {[%clk 0:00:06]} 55. Rb3 {[%clk 0:00:06]}  Kc4 {[%clk 0:00:05]} 56. Nc1 {[%clk 0:00:04]}  Ra1 {[%clk 0:00:05]} 0-1


[Site "https://www.chess.com"]

[Event "Titled Tuesday Blitz June 14 Late 2022"]
[White "Guz, Ari"]
[Black "De Souza, Cristiano Gomes"]
[WhiteFideId "2825759"]
[BlackFideId "2151758"]
[WhiteElo "1913"]
[BlackElo "2068"]
[Result "1-0"]
[Round "01"]
[TimeControl "180+1"]
[Date "2022.06.15"]
[WhiteClock "0:00:21"]
[BlackClock "0:00:11"]

1. e4 {[%clk 0:03:00]}  c5 {[%clk 0:02:58]} 2. Nf3 {[%clk 0:03:01]}  d6 {[%clk 0:02:58]} 3. c3 {[%clk 0:03:01]}  Nf6 {[%clk 0:02:56]} 4. Bd3 {[%clk 0:03:01]}  Bg4 {[%clk 0:02:55]} 5. Bc2 {[%clk 0:02:57]}  Nc6 {[%clk 0:02:55]} 6. h3 {[%clk 0:02:57]}  Bxf3 {[%clk 0:02:54]} 7. Qxf3 {[%clk 0:02:57]}  e6 {[%clk 0:02:54]} 8. b3 {[%clk 0:02:55]}  Be7 {[%clk 0:02:54]} 9. Bb2 {[%clk 0:02:55]}  O-O {[%clk 0:02:51]} 10. O-O {[%clk 0:02:55]}  Rc8 {[%clk 0:02:50]} 11. Qe2 {[%clk 0:02:52]}  e5 {[%clk 0:02:47]} 12. d3 {[%clk 0:02:51]}  d5 {[%clk 0:02:46]} 13. Nd2 {[%clk 0:02:51]}  d4 {[%clk 0:02:44]} 14. c4 {[%clk 0:02:39]}  a6 {[%clk 0:02:43]} 15. a3 {[%clk 0:02:37]}  Ne8 {[%clk 0:02:42]} 16. f4 {[%clk 0:02:36]}  exf4 {[%clk 0:02:39]} 17. Rxf4 {[%clk 0:02:36]}  Nc7 {[%clk 0:02:39]} 18. Rff1 {[%clk 0:02:32]}  Ne6 {[%clk 0:02:40]} 19. Nf3 {[%clk 0:02:31]}  Bg5 {[%clk 0:02:30]} 20. Nxg5 {[%clk 0:02:27]}  Qxg5 {[%clk 0:02:28]} 21. Bc1 {[%clk 0:02:26]}  Qg6 {[%clk 0:02:28]} 22. Bd2 {[%clk 0:02:22]}  Rce8 {[%clk 0:02:28]} 23. b4 {[%clk 0:02:19]}  b6 {[%clk 0:02:21]} 24. Ba4 {[%clk 0:02:17]}  Rc8 {[%clk 0:02:10]} 25. Bxc6 {[%clk 0:02:06]}  Rxc6 {[%clk 0:02:10]} 26. Rf5 {[%clk 0:02:06]}  Nc7 {[%clk 0:02:03]} 27. Raf1 {[%clk 0:01:56]}  f6 {[%clk 0:01:43]} 28. Qf3 {[%clk 0:01:54]}  Qe8 {[%clk 0:01:39]} 29. e5 {[%clk 0:01:50]}  Re6 {[%clk 0:01:38]} 30. exf6 {[%clk 0:01:47]}  Rexf6 {[%clk 0:01:36]} 31. Qg4 {[%clk 0:01:37]}  Rxf5 {[%clk 0:01:34]} 32. Rxf5 {[%clk 0:01:37]}  Rxf5 {[%clk 0:01:31]} 33. Qxf5 {[%clk 0:01:37]}  Qe6 {[%clk 0:01:30]} 34. Qg5 {[%clk 0:01:29]}  Qf6 {[%clk 0:01:16]} 35. Qg3 {[%clk 0:01:15]}  Qf7 {[%clk 0:01:14]} 36. bxc5 {[%clk 0:01:02]}  bxc5 {[%clk 0:01:12]} 37. Qd6 {[%clk 0:01:02]}  Ne6 {[%clk 0:01:09]} 38. Qxa6 {[%clk 0:00:59]}  h6 {[%clk 0:01:05]} 39. Qa8+ {[%clk 0:00:58]}  Kh7 {[%clk 0:01:03]} 40. Qe4+ {[%clk 0:00:59]}  Kg8 {[%clk 0:01:00]} 41. a4 {[%clk 0:00:59]}  Nf8 {[%clk 0:00:54]} 42. a5 {[%clk 0:00:57]}  Qa7 {[%clk 0:00:44]} 43. Qc6 {[%clk 0:00:47]}  Kf7 {[%clk 0:00:37]} 44. a6 {[%clk 0:00:44]}  Nd7 {[%clk 0:00:31]} 45. Bf4 {[%clk 0:00:36]}  Ke7 {[%clk 0:00:22]} 46. Qe4+ {[%clk 0:00:31]}  Kd8 {[%clk 0:00:19]} 47. Qb7 {[%clk 0:00:25]}  Qb6 {[%clk 0:00:18]} 48. Qxb6+ {[%clk 0:00:20]}  Nxb6 {[%clk 0:00:17]} 49. Bd6 {[%clk 0:00:20]}  Na8 {[%clk 0:00:11]} 50. Bxc5 {[%clk 0:00:21]} 1-0


[Site "https://www.chess.com"]

[Event "Titled Tuesday Blitz June 14 Late 2022"]
[White "Hoffmann, Asa"]
[Black "Bernadskiy, Vitaliy"]
[WhiteFideId "2001470"]
[BlackFideId "14100371"]
[WhiteElo "2117"]
[BlackElo "2473"]
[Result "0-1"]
[Round "01"]
[TimeControl "180+1"]
[Date "2022.06.15"]
[WhiteClock "0:00:23"]
[BlackClock "0:00:19"]

1. d4 {[%clk 0:02:53]}  b6 {[%clk 0:02:58]} 2. e4 {[%clk 0:02:46]}  Bb7 {[%clk 0:02:58]} 3. Bd3 {[%clk 0:02:46]}  e6 {[%clk 0:02:58]} 4. Qe2 {[%clk 0:02:45]}  Nf6 {[%clk 0:02:53]} 5. Nd2 {[%clk 0:02:44]}  c5 {[%clk 0:02:52]} 6. c3 {[%clk 0:02:43]}  Be7 {[%clk 0:02:51]} 7. Ngf3 {[%clk 0:02:43]}  d5 {[%clk 0:02:50]} 8. e5 {[%clk 0:02:41]}  Nfd7 {[%clk 0:02:49]} 9. a3 {[%clk 0:02:41]}  a5 {[%clk 0:02:49]} 10. O-O {[%clk 0:02:29]}  Nc6 {[%clk 0:02:49]} 11. Re1 {[%clk 0:02:27]}  c4 {[%clk 0:02:46]} 12. Bc2 {[%clk 0:02:27]}  b5 {[%clk 0:02:46]} 13. Nf1 {[%clk 0:02:26]}  Nb6 {[%clk 0:02:42]} 14. Ng3 {[%clk 0:02:24]}  g6 {[%clk 0:02:39]} 15. Bh6 {[%clk 0:02:21]}  Kd7 {[%clk 0:02:39]} 16. Qe3 {[%clk 0:02:11]}  b4 {[%clk 0:02:35]} 17. cxb4 {[%clk 0:01:51]}  axb4 {[%clk 0:02:34]} 18. axb4 {[%clk 0:01:41]}  Nxb4 {[%clk 0:02:26]} 19. Qc3 {[%clk 0:01:35]}  Nxc2 {[%clk 0:02:11]} 20. Qxc2 {[%clk 0:01:34]}  Qc7 {[%clk 0:02:06]} 21. Bg7 {[%clk 0:01:31]}  Rxa1 {[%clk 0:02:05]} 22. Rxa1 {[%clk 0:01:30]}  Ra8 {[%clk 0:02:05]} 23. Rxa8 {[%clk 0:01:26]}  Bxa8 {[%clk 0:02:06]} 24. Bf6 {[%clk 0:01:26]}  Qa7 {[%clk 0:01:59]} 25. h4 {[%clk 0:01:24]}  Qa4 {[%clk 0:01:51]} 26. Qd2 {[%clk 0:01:23]}  Bf8 {[%clk 0:01:28]} 27. Ng5 {[%clk 0:01:21]}  Bh6 {[%clk 0:01:26]} 28. Qf4 {[%clk 0:01:13]}  Qa1+ {[%clk 0:01:19]} 29. Kh2 {[%clk 0:01:12]}  Qxb2 {[%clk 0:01:20]} 30. Bg7 {[%clk 0:01:09]}  Bxg5 {[%clk 0:01:18]} 31. hxg5 {[%clk 0:01:05]}  Ke8 {[%clk 0:01:02]} 32. Bh6 {[%clk 0:01:01]}  Nd7 {[%clk 0:00:59]} 33. Qh4 {[%clk 0:00:57]}  Qxf2 {[%clk 0:00:55]} 34. Bg7 {[%clk 0:00:54]}  c3 {[%clk 0:00:49]} 35. Qxh7 {[%clk 0:00:53]}  c2 {[%clk 0:00:20]} 36. Qg8+ {[%clk 0:00:50]}  Ke7 {[%clk 0:00:21]} 37. Bf6+ {[%clk 0:00:47]}  Nxf6 {[%clk 0:00:21]} 38. gxf6+ {[%clk 0:00:47]}  Kd7 {[%clk 0:00:22]} 39. Qxf7+ {[%clk 0:00:45]}  Kc6 {[%clk 0:00:23]} 40. Qxe6+ {[%clk 0:00:45]}  Kb5 {[%clk 0:00:23]} 41. Qd7+ {[%clk 0:00:40]}  Bc6 {[%clk 0:00:23]} 42. Qa7 {[%clk 0:00:28]}  c1=Q {[%clk 0:00:20]} 43. Qb8+ {[%clk 0:00:27]}  Kc4 {[%clk 0:00:20]} 44. e6 {[%clk 0:00:23]}  Qh6+ {[%clk 0:00:19]} 0-1


[Site "https://www.chess.com"]

[Event "Titled Tuesday Blitz June 14 Late 2022"]
[White "Huber, Benedikt"]
[Black "Mikhailov, Viacheslav"]
[WhiteFideId "12923583"]
[BlackFideId "4187369"]
[WhiteElo "1979"]
[BlackElo "2381"]
[Result "0-1"]
[Round "01"]
[TimeControl "180+1"]
[Date "2022.06.15"]
[WhiteClock "0:00:17"]
[BlackClock "0:00:35"]

1. d4 {[%clk 0:02:58]}  c5 {[%clk 0:02:59]} 2. d5 {[%clk 0:02:55]}  e5 {[%clk 0:03:00]} 3. e4 {[%clk 0:02:54]}  d6 {[%clk 0:03:00]} 4. Nc3 {[%clk 0:02:53]}  a6 {[%clk 0:03:00]} 5. a4 {[%clk 0:02:52]}  Be7 {[%clk 0:03:00]} 6. Nf3 {[%clk 0:02:51]}  Bg4 {[%clk 0:03:00]} 7. h3 {[%clk 0:02:49]}  Bxf3 {[%clk 0:03:00]} 8. Qxf3 {[%clk 0:02:50]}  Bg5 {[%clk 0:02:57]} 9. Bxg5 {[%clk 0:02:23]}  Qxg5 {[%clk 0:02:56]} 10. Bd3 {[%clk 0:02:23]}  Ne7 {[%clk 0:02:55]} 11. O-O {[%clk 0:02:23]}  O-O {[%clk 0:02:55]} 12. Ne2 {[%clk 0:02:20]}  Nd7 {[%clk 0:02:55]} 13. Ng3 {[%clk 0:02:19]}  g6 {[%clk 0:02:45]} 14. Qg4 {[%clk 0:02:09]}  Qxg4 {[%clk 0:02:44]} 15. hxg4 {[%clk 0:02:10]}  h6 {[%clk 0:02:27]} 16. f3 {[%clk 0:02:10]}  Kg7 {[%clk 0:02:27]} 17. Kf2 {[%clk 0:02:10]}  Rfc8 {[%clk 0:02:26]} 18. b3 {[%clk 0:02:02]}  b6 {[%clk 0:02:05]} 19. Ne2 {[%clk 0:01:56]}  Rcb8 {[%clk 0:01:52]} 20. Ke3 {[%clk 0:01:55]}  Nf6 {[%clk 0:01:42]} 21. Rh1 {[%clk 0:01:44]}  Rh8 {[%clk 0:01:26]} 22. Ng3 {[%clk 0:01:39]}  Ne8 {[%clk 0:01:09]} 23. Ne2 {[%clk 0:01:31]}  Nc7 {[%clk 0:01:09]} 24. Nc3 {[%clk 0:01:29]}  Raf8 {[%clk 0:01:08]} 25. Rad1 {[%clk 0:01:19]}  f5 {[%clk 0:01:07]} 26. gxf5 {[%clk 0:01:19]}  gxf5 {[%clk 0:01:07]} 27. exf5 {[%clk 0:01:19]}  Nexd5+ {[%clk 0:01:04]} 28. Nxd5 {[%clk 0:01:15]}  Nxd5+ {[%clk 0:01:05]} 29. Kf2 {[%clk 0:01:15]}  Nb4 {[%clk 0:01:04]} 30. Be4 {[%clk 0:01:14]}  d5 {[%clk 0:00:54]} 31. Bxd5 {[%clk 0:01:14]}  Nxc2 {[%clk 0:00:54]} 32. Bc4 {[%clk 0:00:43]}  Nd4 {[%clk 0:00:54]} 33. g4 {[%clk 0:00:43]}  b5 {[%clk 0:00:48]} 34. axb5 {[%clk 0:00:40]}  axb5 {[%clk 0:00:49]} 35. Bd5 {[%clk 0:00:41]}  Rd8 {[%clk 0:00:50]} 36. Be6 {[%clk 0:00:38]}  Kf6 {[%clk 0:00:47]} 37. Rc1 {[%clk 0:00:31]}  Nxe6 {[%clk 0:00:44]} 38. fxe6 {[%clk 0:00:32]}  Rd5 {[%clk 0:00:41]} 39. g5+ {[%clk 0:00:22]}  Kxg5 {[%clk 0:00:38]} 40. Rhd1 {[%clk 0:00:15]}  Rxd1 {[%clk 0:00:36]} 41. Rxd1 {[%clk 0:00:16]}  Kf6 {[%clk 0:00:36]} 42. Rd6 {[%clk 0:00:17]}  Rc8 {[%clk 0:00:34]} 43. Rb6 {[%clk 0:00:15]}  c4 {[%clk 0:00:34]} 44. bxc4 {[%clk 0:00:16]}  bxc4 {[%clk 0:00:34]} 45. Ke3 {[%clk 0:00:17]}  c3 {[%clk 0:00:34]} 46. e7+ {[%clk 0:00:15]}  Kxe7 {[%clk 0:00:34]} 47. Rxh6 {[%clk 0:00:16]}  c2 {[%clk 0:00:34]} 48. Rh7+ {[%clk 0:00:17]}  Kf6 {[%clk 0:00:35]} 0-1


[Site "https://www.chess.com"]

[Event "Titled Tuesday Blitz June 14 Late 2022"]
[White "Ibarra Jerez, Jose Carlos"]
[Black "Tymrakiewicz, Rafal"]
[WhiteFideId "2226332"]
[BlackFideId "1108832"]
[WhiteElo "2628"]
[BlackElo "2205"]
[Result "1-0"]
[Round "01"]
[TimeControl "180+1"]
[Date "2022.06.14"]
[WhiteClock "0:00:11"]
[BlackClock "0:00:01"]

1. d4 {[%clk 0:02:57]}  Nf6 {[%clk 0:02:59]} 2. Nc3 {[%clk 0:02:56]}  g6 {[%clk 0:02:46]} 3. e4 {[%clk 0:02:56]}  d5 {[%clk 0:02:47]} 4. e5 {[%clk 0:02:56]}  Ne4 {[%clk 0:02:47]} 5. Nce2 {[%clk 0:02:42]}  f6 {[%clk 0:02:45]} 6. f3 {[%clk 0:02:41]}  Ng5 {[%clk 0:02:45]} 7. Bxg5 {[%clk 0:02:35]}  fxg5 {[%clk 0:02:46]} 8. Qd2 {[%clk 0:02:36]}  g4 {[%clk 0:02:36]} 9. fxg4 {[%clk 0:02:31]}  Bxg4 {[%clk 0:02:35]} 10. Nf4 {[%clk 0:02:29]}  Bh6 {[%clk 0:02:08]} 11. h3 {[%clk 0:02:30]}  Bf5 {[%clk 0:02:07]} 12. O-O-O {[%clk 0:02:26]}  O-O {[%clk 0:02:03]} 13. Nge2 {[%clk 0:02:25]}  Be4 {[%clk 0:01:58]} 14. Rg1 {[%clk 0:02:21]}  Nc6 {[%clk 0:01:47]} 15. g3 {[%clk 0:02:08]}  Qd7 {[%clk 0:01:42]} 16. Kb1 {[%clk 0:02:05]}  a5 {[%clk 0:01:39]} 17. Nc3 {[%clk 0:02:01]}  Bf3 {[%clk 0:01:37]} 18. Re1 {[%clk 0:01:55]}  e6 {[%clk 0:01:32]} 19. Qe3 {[%clk 0:01:40]}  Be4 {[%clk 0:01:29]} 20. Nxe4 {[%clk 0:01:40]}  dxe4 {[%clk 0:01:30]} 21. c3 {[%clk 0:01:41]}  Qf7 {[%clk 0:01:26]} 22. Bc4 {[%clk 0:01:32]}  b5 {[%clk 0:01:13]} 23. Bxe6 {[%clk 0:01:08]}  Qxe6 {[%clk 0:01:13]} 24. Nxe6 {[%clk 0:01:09]}  Bxe3 {[%clk 0:01:12]} 25. Rxe3 {[%clk 0:01:10]}  Rf7 {[%clk 0:01:00]} 26. Rxe4 {[%clk 0:01:08]}  Nd8 {[%clk 0:00:44]} 27. Nc5 {[%clk 0:01:00]}  c6 {[%clk 0:00:42]} 28. e6 {[%clk 0:00:59]}  Re7 {[%clk 0:00:41]} 29. Rf1 {[%clk 0:00:57]}  Nb7 {[%clk 0:00:31]} 30. Rf7 {[%clk 0:00:54]}  Nxc5 {[%clk 0:00:26]} 31. dxc5 {[%clk 0:00:48]}  Rxf7 {[%clk 0:00:19]} 32. exf7+ {[%clk 0:00:48]}  Kxf7 {[%clk 0:00:19]} 33. a4 {[%clk 0:00:46]}  bxa4 {[%clk 0:00:17]} 34. Rxa4 {[%clk 0:00:46]}  Ke6 {[%clk 0:00:17]} 35. b4 {[%clk 0:00:43]}  Kd5 {[%clk 0:00:17]} 36. Kc2 {[%clk 0:00:42]}  Kc4 {[%clk 0:00:16]} 37. bxa5+ {[%clk 0:00:32]}  Kb5 {[%clk 0:00:16]} 38. Kb3 {[%clk 0:00:22]}  Rxa5 {[%clk 0:00:12]} 39. Rh4 {[%clk 0:00:22]}  h5 {[%clk 0:00:11]} 40. g4 {[%clk 0:00:22]}  hxg4 {[%clk 0:00:09]} 41. Rxg4 {[%clk 0:00:22]}  Ra1 {[%clk 0:00:06]} 42. Rxg6 {[%clk 0:00:20]}  Rh1 {[%clk 0:00:07]} 43. Rh6 {[%clk 0:00:20]}  Kxc5 {[%clk 0:00:07]} 44. Rh5+ {[%clk 0:00:21]}  Kb6 {[%clk 0:00:06]} 45. Kc4 {[%clk 0:00:22]}  Rh2 {[%clk 0:00:05]} 46. Rh6 {[%clk 0:00:22]}  Rf2 {[%clk 0:00:05]} 47. Kd3 {[%clk 0:00:20]}  Rf3+ {[%clk 0:00:05]} 48. Kd4 {[%clk 0:00:20]}  Rf4+ {[%clk 0:00:05]} 49. Kd3 {[%clk 0:00:21]}  Rf3+ {[%clk 0:00:05]} 50. Kc2 {[%clk 0:00:21]}  Kc5 {[%clk 0:00:05]} 51. Kb3 {[%clk 0:00:21]}  Kb5 {[%clk 0:00:05]} 52. Rh8 {[%clk 0:00:21]}  Kc5 {[%clk 0:00:04]} 53. h4 {[%clk 0:00:21]}  Rh3 {[%clk 0:00:03]} 54. Rh5+ {[%clk 0:00:21]}  Kd6 {[%clk 0:00:02]} 55. Kc4 {[%clk 0:00:22]}  Rg3 {[%clk 0:00:01]} 56. Rh6+ {[%clk 0:00:22]}  Kc7 {[%clk 0:00:02]} 57. Kc5 {[%clk 0:00:21]}  Rxc3+ {[%clk 0:00:02]} 58. Kd4 {[%clk 0:00:22]}  Rg3 {[%clk 0:00:02]} 59. Ke5 {[%clk 0:00:22]}  Re3+ {[%clk 0:00:02]} 60. Kd4 {[%clk 0:00:22]}  Re1 {[%clk 0:00:03]} 61. h5 {[%clk 0:00:22]}  Kb6 {[%clk 0:00:03]} 62. Rh8 {[%clk 0:00:21]}  Kb5 {[%clk 0:00:03]} 63. Rb8+ {[%clk 0:00:21]}  Ka6 {[%clk 0:00:03]} 64. Rh8 {[%clk 0:00:17]}  Rh1 {[%clk 0:00:04]} 65. Kc5 {[%clk 0:00:16]}  Rc1+ {[%clk 0:00:03]} 66. Kd6 {[%clk 0:00:16]}  Kb7 {[%clk 0:00:03]} 67. h6 {[%clk 0:00:16]}  c5 {[%clk 0:00:02]} 68. Kd5 {[%clk 0:00:12]}  c4 {[%clk 0:00:02]} 69. Kd4 {[%clk 0:00:13]}  Ka7 {[%clk 0:00:02]} 70. Ke3 {[%clk 0:00:13]}  Kb7 {[%clk 0:00:01]} 71. Kd2 {[%clk 0:00:13]}  Rh1 {[%clk 0:00:01]} 72. Kc3 {[%clk 0:00:14]}  Rh4 {[%clk 0:00:01]} 73. Kb4 {[%clk 0:00:14]}  Ka7 {[%clk 0:00:01]} 74. Rh7+ {[%clk 0:00:13]}  Kb8 {[%clk 0:00:01]} 75. Kb5 {[%clk 0:00:11]}  c3 {[%clk 0:00:01]} 76. Kb6 {[%clk 0:00:12]}  Kc8 {[%clk 0:00:01]} 77. Rc7+ {[%clk 0:00:11]}  Kd8 {[%clk 0:00:02]} 78. h7 {[%clk 0:00:12]}  Rh6+ {[%clk 0:00:01]} 79. Kb7 {[%clk 0:00:12]}  c2 {[%clk 0:00:01]} 80. Rc8+ {[%clk 0:00:09]}  Kd7 {[%clk 0:00:01]} 81. Rxc2 {[%clk 0:00:10]}  Rxh7 {[%clk 0:00:01]} 82. Rc7+ {[%clk 0:00:10]}  Kd8 {[%clk 0:00:01]} 83. Rxh7 {[%clk 0:00:11]} 1-0


[Site "https://www.chess.com"]

[Event "Titled Tuesday Blitz June 14 Late 2022"]
[White "Ivic, Velimir"]
[Black "Ferreira, Vitor Hugo Vieira"]
[WhiteFideId "950122"]
[BlackFideId "2119765"]
[WhiteElo "2610"]
[BlackElo "2165"]
[Result "1-0"]
[Round "01"]
[TimeControl "180+1"]
[Date "2022.06.14"]
[WhiteClock "0:02:19"]
[BlackClock "0:02:05"]

1. e4 {[%clk 0:03:00]}  c5 {[%clk 0:02:59]} 2. Nf3 {[%clk 0:03:00]}  d6 {[%clk 0:03:00]} 3. d4 {[%clk 0:03:01]}  cxd4 {[%clk 0:03:00]} 4. Nxd4 {[%clk 0:03:02]}  Nf6 {[%clk 0:03:00]} 5. Nc3 {[%clk 0:03:02]}  a6 {[%clk 0:03:00]} 6. Rg1 {[%clk 0:03:03]}  h5 {[%clk 0:02:59]} 7. Bg5 {[%clk 0:03:03]}  e6 {[%clk 0:02:59]} 8. Qd2 {[%clk 0:03:02]}  Nc6 {[%clk 0:02:59]} 9. O-O-O {[%clk 0:03:02]}  Be7 {[%clk 0:02:56]} 10. f4 {[%clk 0:03:01]}  Bd7 {[%clk 0:02:55]} 11. Kb1 {[%clk 0:03:00]}  b5 {[%clk 0:02:51]} 12. a3 {[%clk 0:02:55]}  Qb6 {[%clk 0:02:48]} 13. Nxc6 {[%clk 0:02:50]}  Bxc6 {[%clk 0:02:47]} 14. Bd3 {[%clk 0:02:50]}  Qb7 {[%clk 0:02:39]} 15. e5 {[%clk 0:02:49]}  dxe5 {[%clk 0:02:38]} 16. fxe5 {[%clk 0:02:50]}  Nd5 {[%clk 0:02:38]} 17. Ne4 {[%clk 0:02:49]}  O-O {[%clk 0:02:29]} 18. g4 {[%clk 0:02:43]}  h4 {[%clk 0:02:28]} 19. Bxe7 {[%clk 0:02:42]}  Qxe7 {[%clk 0:02:28]} 20. g5 {[%clk 0:02:42]}  Rfb8 {[%clk 0:02:23]} 21. g6 {[%clk 0:02:32]}  f6 {[%clk 0:02:20]} 22. exf6 {[%clk 0:02:32]}  Nxf6 {[%clk 0:02:19]} 23. Qg5 {[%clk 0:02:21]}  Nd5 {[%clk 0:02:05]} 24. Qh5 {[%clk 0:02:19]} 1-0


[Site "https://www.chess.com"]